Cogmind - Beta 15 @@@ ROGUE MODE // 2025.06.04 @ 09:16:30 Player: The Gourd Result: Destroyed by Y-54 Guardian with Flak Gun Performance ------------- Evolutions (3) 1500 Regions Visited (6) 1200 Robots Destroyed (162) 810 Value Destroyed (6779) 6779 Prototype IDs (16) 320 Alien Tech Used (0) 0 Bonus (2131) 2131 TOTAL SCORE: 12740 Bonus ------- High Alert Combat Kills 1365 Follower Combat Kills 66 Entered Garrisons 200 Used RIF Installer 500 Cogmind --------- Core Integrity 0/700 Matter 234/300 Energy 100/100 System Corruption 9% Temperature Cool (12) Movement Core (450) Ox8 Location -7/Factory Parts ------- > --- POWER (1) -------- (None) > --- PROPULSION (4) --- (None) > --- UTILITY (5) ------ Large Storage Unit Improved Signal Interpreter > --- WEAPON (3) ------- Heavy Rocket Launcher > --- INVENTORY (15) --- Micro Nuclear Core Xenon Bombardment Thruster Cooled VTOL Module Improved Sensor Array Microactuators System Shield System Shield System Shield Relay Coupler [Sentry] (18) Coil Gun Proton Missile Launcher Proton Missile Launcher Power Maul Peak State ------------ > --- POWER ------------ Deuterium Engine > --- PROPULSION ------- Improved Treads Improved Treads Armored Treads Advanced Treads Advanced Treads > --- UTILITY ---------- Medium Storage Unit Improved Light Armor Plating Gun Armor Tower Shield Hacking Suite > --- WEAPON ----------- Beam Rifle Minigun Minigun Barrage Gun Power Maul > --- INVENTORY -------- Light Treads Light Treads Improved Heat Sink High-capacity Matter Pod Improved Signal Interpreter Seismic Detector System Shield System Shield Grenade Launcher Rocket Launcher [Rating: 68] Favorites ----------- Power Light Nuclear Core Engine Subdweller Power Source Power Core Light Nuclear Core Propulsion Light Treads Treads Light Treads Wheel Armored Wheel Hover Unit Aerolev Unit Utility Hacking Suite Device Seismic Detector Storage Large Storage Unit Processor Improved Signal Interpreter Hackware Hacking Suite Protection Gun Armor Weapon Heavy Machine Gun Energy Gun Small Laser Ballistic Gun Heavy Machine Gun Ballistic Cannon Magnetic Acceleration Cannon Launcher Subdweller Shrapnel Launcher Special Weapon Mining Laser Impact Weapon Power Maul Build | -11 -10 -10 -8 -8 -8 -7 ------- Run | Yrd Mat Sub Mat Gar Mat Fac Slots Evolved 6 | . . . 4 . . 2 Power . | . . . . . . . Propulsion 2 | . . . 1 . . 1 Utility 3 | . . . 2 . . 1 Weapon 1 | . . . 1 . . . Parts Attached 109 | 8 3 24 22 19 14 19 Power 20 | 2 . 4 3 6 2 3 Engine 9 | 2 . 3 3 . . 1 Core 11 | . . 1 . 6 2 2 Reactor . | . . . . . . . Propulsion 29 | 2 1 4 7 1 6 8 Treads 14 | 1 1 2 7 1 2 . Leg . | . . . . . . . Wheel 5 | 1 . 2 . . 2 . Hover 10 | . . . . . 2 8 Flight . | . . . . . . . Utility 22 | 2 . 3 5 5 3 4 Device 5 | 1 . 1 . . 1 2 Storage 6 | 1 . 1 2 1 1 . Processor 1 | . . . . . . 1 Hackware 3 | . . . 1 . 1 1 Protection 7 | . . 1 2 4 . . Artifact . | . . . . . . . Weapon 38 | 2 2 13 7 7 3 4 Energy Gun 3 | 1 1 . 1 . . . Energy Cannon . | . . . . . . . Ballistic Gun 22 | 1 . 9 4 5 2 1 Ballistic Cannon 2 | . . . . . . 2 Launcher 8 | . . 3 1 2 1 1 Special Weapon 2 | . 1 1 . . . . Impact Weapon 1 | . . . 1 . . . Slashing Weapon . | . . . . . . . Piercing Weapon . | . . . . . . . Special Melee Weapon . | . . . . . . . Unidentified Prototypes 5 | . . 1 1 . 1 2 Parts Lost 33 | . 1 4 3 7 4 14 Power 4 | . . 1 . 1 1 1 Propulsion 12 | . . 2 . 2 2 6 Utility 7 | . . . 1 2 . 4 Weapon 10 | . 1 1 2 2 1 3 Highest Loss Streak 7 | . 1 2 1 2 1 7 To Critical Strikes 1 | . . 1 . . . . Average Backups 11 | 4 7 7 8 14 14 14 Power . | . . . . . . . Propulsion 2 | 1 1 . 1 1 4 2 Utility 5 | . 3 3 4 6 6 8 Weapon 3 | . 1 2 2 4 4 2 Tool/Special . | . . . . . . . Unused Backups 36 | . 5 3 5 4 3 16 Power 2 | . . . . . . 2 Propulsion 6 | . 1 . 1 1 1 2 Utility 21 | . 3 2 1 3 2 10 Weapon 5 | . 1 . 2 . . 2 Tool/Special 2 | . . 1 1 . . . Average Slot Usage (%) 96 | . 100 97 95 99 99 87 Engine 4 | . 14 11 6 . . . Core 4 | . . . . 8 8 6 Treads 17 | . 22 15 24 26 17 . Wheel 4 | . 5 8 . . 8 . Hover 3 | . . . . . . 29 Device 5 | . 14 . 5 4 6 6 Storage 9 | . 14 11 7 9 9 7 Hackware 8 | . . . 7 9 17 14 Protection 7 | . . 10 9 13 2 . Ballistic Gun 16 | . 14 17 20 18 17 4 Launcher 5 | . . 12 6 3 5 . Special Weapon 1 | . 2 5 . . . . Impact Weapon 2 | . . . 2 4 3 5 Peak Build Rating 68 | 7 8 26 68 42 44 53 Average Rating 33 | 6 7 21 44 38 37 45 On Entrance 21 | . 7 8 26 34 40 38 Naked Turns . | . . . . . . . Heaviest Build 79 | 15 15 36 79 62 57 46 Greatest Support 110 | 16 40 40 110 67 62 34 Greatest Overweight (x) 8 | . . 1 1 . 3 8 Average Overweight (x) . | . . . . . 2 . Largest Inventory Capacity 15 | 8 8 8 15 15 15 15 Average Capacity 11 | 7 8 7 9 15 15 15 Most Carried 15 | 6 8 8 15 15 15 15 Average Carried 11 | 4 7 7 9 14 14 14 Final Capacity 15 | 8 8 8 15 15 15 15 Final Carried 15 | 6 8 8 15 15 15 13 Class Distribution -------------------- 25% | Gunner 18% | Mutant 18% | Hacker-Mutant 13% | Bomber 11% | Hacker-Skirmisher 5% | Scavenger-Bomber 4% | Scavenger-Mutant Dominant Class ---------------- Mutant | -10/Materials Gunner | -10/Subcaves Bomber | -8/Materials Mutant | -8/Garrison Hacker-Skirmisher | -8/Materials Hacker-Mutant | -7/Factory Resources | -11 -10 -10 -8 -8 -8 -7 ----------- Run | Yrd Mat Sub Mat Gar Mat Fac Matter Collected 6406 | 307 352 1706 1484 1387 887 283 Remotely . | . . . . . . . Salvage Created 5551 | 72 282 725 1192 1563 1451 266 Parts 348 | 8 27 51 61 99 85 17 Haulers Intercepted 2 | . . . 2 . . . Recyclers Shooed 2 | . 1 . . . . 1 Parts Field Recycled . | . . . . . . . Retrieved Matter . | . . . . . . . Parts Self-Destructed 22 | . . 22 . . . . Prevented . | . . . . . . . Kills | -11 -10 -10 -8 -8 -8 -7 ------- Run | Yrd Mat Sub Mat Gar Mat Fac Combat Hostiles Destroyed 143 | . 9 30 31 36 28 9 Melee 1 | . . . . . . 1 Guns 87 | . 8 9 24 28 17 1 Cannons 6 | . 1 . . . . 5 AOE 47 | . . 21 7 7 11 1 Classes Destroyed 18 | 1 4 3 1 4 4 1 Worker 6 | . . . . . 5 1 Builder 1 | . . . . . 1 . Tunneler 3 | 3 . . . . . . Hauler 2 | . . . 2 . . . Operator 3 | . 2 . . . 1 . Turret 2 | . . 2 . . . . Watcher 2 | . 1 . 1 . . . Swarmer 26 | . 6 3 10 4 3 . Grunt 49 | . 3 3 13 17 11 2 Brawler 3 | . . . . . 3 . Duelist 2 | . . . . 1 1 . Protector 2 | . . . . . 2 . Sentry 25 | . . 1 8 9 7 . Specialist 3 | . . . . 3 . . Hunter 2 | . . . . 1 1 . Programmer 7 | . . . . . . 7 Behemoth 1 | . . . . 1 . . Subdweller 23 | . . 23 . . . . Best Kill Streak 6 | 1 3 5 5 6 5 2 Combat Bots Only 6 | . 2 3 4 6 5 2 Max Kills in Single Turn 4 | 1 1 2 4 3 3 1 Gunslinging 1 | . . . . 1 . . Exploded 4 | . . 2 4 3 3 1 Melee 1 | . . . . . . 1 Uniques/NPCs Destroyed . | . . . . . . . Combat | -11 -10 -10 -8 -8 -8 -7 -------- Run | Yrd Mat Sub Mat Gar Mat Fac Hostile Shots Fired 842 | . 34 99 142 170 107 290 Missed 277 | . 10 36 41 55 40 95 Hits 565 | . 24 63 101 115 67 195 Melee 4 | . . . . 1 2 1 Projectile 561 | . 24 63 101 114 65 194 AOE 2 | . . 1 . . . 1 Critical Strikes 22 | . . 3 5 6 1 7 Part Disruptions 2 | . . . . . . 2 Damage Taken 8769 | . 283 1435 1451 2205 1060 2335 Core 1325 | . 37 209 76 203 96 704 Absorbed by Shields . | . . . . . . . Regen/Repaired (Parts) 306 | . 55 . 117 . . 134 Core Remaining (%) 44 | 100 . 1 . . 31 . Volleys Fired 385 | 9 29 100 75 82 64 26 Largest 5 | 2 2 3 5 3 3 3 Hottest 141 | 60 120 100 141 90 105 111 Shots Fired 887 | 18 58 175 237 197 148 54 Gun 720 | 18 51 91 227 173 134 26 Cannon 24 | . . . . . . 24 Launcher 91 | . . 39 10 24 14 4 Special 52 | . 7 45 . . . . Kinetic 724 | 9 29 127 202 173 134 50 Thermal 88 | . 17 45 26 . . . Explosive 28 | . . 3 9 12 . 4 Electromagnetic 47 | 9 12 . . 12 14 . Robot Hit Streak 24 | 5 10 11 24 20 16 11 Robot Miss Streak 5 | 2 5 3 3 4 3 3 Penetration Max . | . . . . . . . Secondary Targets 10 | . 1 . 2 6 1 . Max Gunslinging Chain 1 | . 1 . 1 1 1 . Shots Hit Robots 552 | 10 34 81 151 127 99 50 Core Hits 277 | 3 15 58 60 66 62 13 Critical Kills 3 | . . 1 1 1 . . Critical Parts Destroyed 6 | . . . 1 1 1 3 Critical Strikes 13 | . . 1 5 2 1 4 Burn 3 | . . . 3 . . . Destroy 6 | . . 1 2 2 1 . Blast 1 | . . . . . . 1 Smash 3 | . . . . . . 3 Melee Attacks 128 | . . . 9 61 13 45 Impact 128 | . . . 9 61 13 45 Slashing . | . . . . . . . Piercing . | . . . . . . . Sneak Attacks 3 | . . . . . 1 2 Combat Hostiles . | . . . . . . . Follow-up Attacks . | . . . . . . . Damage Inflicted 16102 | 139 471 3653 3430 3030 3426 1953 Guns 8893 | 139 420 1182 2602 2315 1932 303 Cannons 722 | . . . . . . 722 Explosions 5634 | . 27 2471 828 715 1380 213 Melee 810 | . . . . . 114 696 Ramming 19 | . . . . . . 19 Kinetic 11660 | 72 217 3486 2613 2315 1932 1025 Thermal 530 | . 137 . 217 . 176 . Explosive 1468 | . . 167 600 488 . 213 Electromagnetic 1615 | 67 117 . . 227 1204 . Impact 810 | . . . . . 114 696 Slashing . | . . . . . . . Piercing . | . . . . . . . Highest Corruption 9 | . . . . . . 9 Average Corruption 5 | . . . . . . 5 Corruption Purged 5 | . . . . . . 5 Corruption Blocked . | . . . . . . . Effects 48 | . . . . . . 48 Message Errors 13 | . . . . . . 13 Matter Fused 5 | . . . . . . 5 Heat Flow Errors 12 | . . . . . . 12 Energy Discharges 9 | . . . . . . 9 Parts Rejected 2 | . . . . . . 2 Data Loss (minor) 3 | . . . . . . 3 Data Loss (major) 4 | . . . . . . 4 Overload Shots . | . . . . . . . Overflow Damage 382 | . 13 3 . 2 99 265 Projectiles 21 | . . . . . . 21 Explosions 43 | . 13 3 . 2 25 . Melee 318 | . . . . . 74 244 Knockbacks 10 | . . . . . . 10 Impact 2 | . . . . . . 2 Kinetic 8 | . . . . . . 8 Secondary . | . . . . . . . Self-Inflicted Damage 330 | . 40 34 25 165 20 46 Shots 17 | . 1 3 1 5 4 3 Rammed 1 | . . . . . . 1 Targets Rammed 1 | . . . . . . 1 Kicked . | . . . . . . . Crushed . | . . . . . . . Highest Temperature 421 | . 60 276 421 326 275 283 Average Temperature 82 | . 16 134 102 77 62 93 Received Heat Transfer 2713 | . 60 553 621 672 450 357 Effects 2 | . . . 2 . . . Shutdowns 1 | . . . 1 . . . Energy Bleed 1 | . . . 1 . . . Siege Activations . | . . . . . . . Martial Activations . | . . . . . . . Shielding Activations . | . . . . . . . Robots Disrupted . | . . . . . . . Combat Hostiles . | . . . . . . . Robots Corrupted 2 | . . . . 1 . 1 Combat Hostiles 2 | . . . . 1 . 1 Parts Fried 9 | . . . . 2 7 . Impact Corruptions 12 | . . . . . 1 11 Robots Melted . | . . . . . . . Combat Hostiles . | . . . . . . . Parts Melted 3 | . . 1 2 . . . Heat Transferred 1364 | . 300 . 777 . 287 . Parts Sabotaged . | . . . . . . . Parts Stolen . | . . . . . . . Parts Stripped . | . . . . . . . Power Chain Reactions 4 | . 1 . . . 3 . Alert | -11 -10 -10 -8 -8 -8 -7 ------- Run | Yrd Mat Sub Mat Gar Mat Fac Maximum Alert Level 5 | . . . 2 5 4 2 Low Security (%) 36 | 100 100 . 65 . . 73 Level 1 10 | . . . 22 6 . 25 Level 2 13 | . . . 12 13 27 1 Level 3 25 | . . . . 21 71 . Level 4 5 | . . . . 25 . . Level 5 7 | . . . . 32 . . High Security . | . . . . . . . Max Security . | . . . . . . . Peak Influence 2486 | 5 91 . 467 2486 1211 464 Initial 1211 | . . . 15 273 1211 464 Average 583 | . 21 . 144 1293 766 183 Influence Increases 5776 | 15 340 215 1095 2343 1054 714 Destroy 0b10 Robot/C 2440 | . 180 180 620 760 520 180 Destroy 0b10 Robot/NC 105 | 15 15 . 15 10 45 5 Destroy Leader 448 | . 52 20 146 20 130 80 Allied During Kill 20 | . . . . 20 . . Successful Hack 134 | . 13 . 40 . 48 33 Disable Machine 270 | . 15 . 90 30 75 60 Anti-Garrison Action 1350 | . . . . 1350 . . Destroy Structure 304 | . 5 . 64 153 26 56 Partial Spotted 45 | . . . . . . 45 Lose Combat Pursuer 660 | . 60 15 120 . 210 255 Influence Decreases 5550 | 15 340 185 705 277 2517 1511 Entered New Map 1996 | . . . 15 147 1275 559 Time Decay 2407 | 15 293 175 510 . 752 662 Lost Part 300 | . 10 10 30 70 40 140 Lost Ally 60 | . . . . 60 . . Purge Threat 787 | . 37 . 150 . 450 150 Squads Dispatched 19 | . 3 . 3 . 5 8 Investigation 5 | . 1 . 2 . . 2 Extermination 5 | . . . . . . 5 Reinforcement 5 | . 2 . 1 . 1 1 Assault 3 | . . . . . 3 . Garrison 1 | . . . . . 1 . Intercept . | . . . . . . . Searches Triggered . | . . . . . . . Construction Impeded . | . . . . . . . Haulers Reinforced 1 | . . . . . . 1 Active Scanning Responses . | . . . . . . . Cargo Convoy Interrupts . | . . . . . . . Stealth | -11 -10 -10 -8 -8 -8 -7 --------- Run | Yrd Mat Sub Mat Gar Mat Fac Distress Signals 12 | . . . 3 3 4 2 Communications Jammed . | . . . . . . . Distress Signals . | . . . . . . . Times Spotted 233 | . 26 34 44 43 53 33 Peak Tracking Total 6 | . 5 6 6 5 5 6 Tactical Retreats 20 | . 3 1 5 . 5 6 Traps | -11 -10 -10 -8 -8 -8 -7 ------- Run | Yrd Mat Sub Mat Gar Mat Fac Traps Triggered 9 | . 1 5 1 2 . . Indirectly . | . . . . . . . Trap Hack Attempts . | . . . . . . . Triggered . | . . . . . . . Disarmed 6 | . . . 6 . . . Reprogrammed . | . . . . . . . Reused . | . . . . . . . Traps Extracted . | . . . . . . . Installed . | . . . . . . . Triggered . | . . . . . . . Machines | -11 -10 -10 -8 -8 -8 -7 ---------- Run | Yrd Mat Sub Mat Gar Mat Fac Machines Disabled 27 | . 1 5 6 6 5 4 Max in Single Turn 3 | . 1 3 1 1 1 1 Garrison Access 5 | . . . . . 1 4 Garrison Relay 4 | . . . . 4 . . Machines Repaired . | . . . . . . . Machines Dismantled . | . . . . . . . Machines Sabotaged . | . . . . . . . Overloaded Fab Kills . | . . . . . . . Hacking | -11 -10 -10 -8 -8 -8 -7 --------- Run | Yrd Mat Sub Mat Gar Mat Fac Machines Accessed 57 | . 6 2 12 3 11 23 Terminals 37 | . 5 . 8 3 8 13 Fabricators 3 | . . . . . . 3 Repair Stations 5 | . 1 . 2 . . 2 Recycling Units 2 | . . . . . 1 1 Scanalyzers 2 | . . . 1 . 1 . Garrison Access 6 | . . . 1 . 1 4 Total Hacks 140 | . 14 5 30 5 31 55 Successful 91 | . 6 5 19 2 22 37 Failed 48 | . 8 . 11 3 9 17 Catastrophic 10 | . 2 . 2 1 4 1 Database Lockouts 1 | . . . . . . 1 Manual 82 | . 12 . 19 . 23 28 Terminals 96 | . 12 . 22 5 25 32 Fabricators 9 | . . . . . . 9 Repair Stations 10 | . 2 . 4 . . 4 Recycling Units 8 | . . . . . 2 6 Scanalyzers 6 | . . . 3 . 3 . Garrison Access 6 | . . . 1 . 1 4 Terminal Hacks 29 | . 2 5 3 2 8 9 Record 5 | . . 4 . . . 1 Part Schematic 1 | . . . . . . 1 Robot Analysis 1 | . . . . . 1 . Open Door 1 | . . . . 1 . . Level Access Points 1 | . . . . . 1 . Branch Access Points 1 | . . . . . 1 . Emergency Access Points 1 | . . . . . . 1 Terminal Index 1 | . . . . . . 1 Fabricator Index 1 | . . . . . . 1 Unreport Threat 6 | . 1 . 1 . 3 1 Locate Traps 1 | . . . . . . 1 Disarm Traps 1 | . . . 1 . . . Recall Investigation 2 | . . . . . 1 1 Recall Reinforcements 1 | . . . . . 1 . Hauler Manifests 1 | . . . 1 . . . Registered Components 2 | . 1 . . . . 1 Patrol Navigation 1 | . . . . 1 . . Proto ID Catalog 1 | . . 1 . . . . Fabricator Hacks 3 | . . . . . . 3 Load Schematic 2 | . . . . . . 2 Build 1 | . . . . . . 1 Repair Station Hacks 10 | . 2 . 4 . . 4 Scan Component 5 | . 1 . 2 . . 2 Repair 5 | . 1 . 2 . . 2 Recycling Unit Hacks 8 | . . . . . 2 6 Recycle Component 3 | . . . . . . 3 Process 1 | . . . . . . 1 Report Inventory 1 | . . . . . 1 . Retrieve Matter 2 | . . . . . . 2 Retrieve Components 1 | . . . . . 1 . Scanalyzer 6 | . . . 3 . 3 . Insert Component 4 | . . . 2 . 2 . Analyze 2 | . . . 1 . 1 . Garrison Access Hacks 6 | . . . 1 . 1 4 Unlock Access 1 | . . . 1 . . . Seal Access 5 | . . . . . 1 4 Unauthorized Hacks 29 | . 2 . 8 . 8 11 Terminals 29 | . 2 . 8 . 8 11 Assimilate 3 | . . . . . . 3 Botnet 9 | . . . 3 . 3 3 Skim 17 | . 2 . 5 . 5 5 Fabricators . | . . . . . . . Repair Stations . | . . . . . . . Recycling Units . | . . . . . . . Scanalyzers . | . . . . . . . Garrison Access . | . . . . . . . Data Cores Recovered . | . . . . . . . Used . | . . . . . . . Hacking Detections 44 | . 4 . 11 3 10 16 Full Trace Events 4 | . . . 1 1 . 2 Feedback Events . | . . . . . . . Feedback Blocked . | . . . . . . . Robot Schematics Acquired . | . . . . . . . Robots Built . | . . . . . . . Authchips . | . . . . . . . Time . | . . . . . . . Total Robot Build Rating . | . . . . . . . Part Schematics Acquired 3 | . . . 1 . 1 1 Parts Built 1 | . . . . . . 1 Authchips . | . . . . . . . Time 67 | . . . . . . 67 Total Part Build Rating 4 | . . . . . . 4 Parts Repaired 5 | . 1 . 2 . . 2 Time 168 | . 26 . 76 . . 66 Parts Recycled 3 | . . . . . . 3 Recycled Matter 377 | . . . . . . 377 Retrieved Matter 377 | . . . . . . 377 Retrieved Components 9 | . . . . . 9 . Parts Scanalyzed 2 | . . . 1 . 1 . Part Schematics Acquired 2 | . . . 1 . 1 . Parts Damaged . | . . . . . . . Bothacking | -11 -10 -10 -8 -8 -8 -7 ------------ Run | Yrd Mat Sub Mat Gar Mat Fac Used RIF Installer 1 | . . . . 1 . . Robots Hacked . | . . . . . . . Non-combat . | . . . . . . . Combat . | . . . . . . . Robot Hacks Applied . | . . . . . . . Relay Couplers Released 19 | . . . . 15 . 4 Machine Destruction 15 | . . . . 15 . . Programmers 4 | . . . . . . 4 Fabnet Peak Effective % . | . . . . . . . Robots Rewired 3 | . . . . 3 . . Allies Hacked . | . . . . . . . Hacks Repelled . | . . . . . . . Allies | -11 -10 -10 -8 -8 -8 -7 -------- Run | Yrd Mat Sub Mat Gar Mat Fac Total Allies 3 | . . . . 3 . . Largest Group 3 | . . . . 3 . . Highest-Rated Group 71 | . . . . 71 . . Highest-Rated Ally 31 | . . . . 31 . . Total Orders . | . . . . . . . Ally Attacks 4 | . . . . 4 . . Total Damage 149 | . . . . 149 . . Kills 2 | . . . . 2 . . Allies Corrupted . | . . . . . . . Allies Melted . | . . . . . . . Intel | -11 -10 -10 -8 -8 -8 -7 ------- Run | Yrd Mat Sub Mat Gar Mat Fac Active Infowar (turns) 10916 | 142 1270 315 2077 1803 3052 2257 Sensors 5309 | . . . . . 3052 2257 Structural 162 | . . 162 . . . . Seismic 5445 | 142 1270 153 2077 1803 . . Robot Analysis Total 1 | . . . . . 1 . Derelict Logs Recovered 2 | . . 2 . . . . Drone Launches . | . . . . . . . Drone Recoveries . | . . . . . . . Exploration | -11 -10 -10 -8 -8 -8 -7 ------------- Run | Yrd Mat Sub Mat Gar Mat Fac Turns Passed 18796 | 233 1270 4529 2872 3353 4030 2509 Spaces Moved 11339 | 176 814 3100 1318 1757 1131 3043 Core 5 | 2 . . . . . 3 Treads 4375 | . 401 795 1259 1757 163 . Legs . | . . . . . . . Wheels 3919 | 174 413 2305 59 . 968 . Hover 3040 | . . . . . . 3040 Flight . | . . . . . . . Fastest Speed 38 | 50 100 100 120 150 120 38 Average Speed 116 | 99 129 130 161 156 138 51 Slowest Speed 450 | 100 160 260 240 158 240 450 Overloaded Moves . | . . . . . . . Propulsion Burnouts . | . . . . . . . Robots Hopped . | . . . . . . . Potential Cave-ins 1 | . . 1 . . . . Cave-ins Triggered . | . . . . . . . Exploration Rate (%) 70 | 8 88 95 82 91 65 61 Regions Visited 6 Branch Regions 1 Pre-discovered Areas 6 | . . 1 1 . 1 3 Known Exits Taken 2 | . . . 1 . 1 . Unknown Exits Taken 3 | 1 1 1 . . . . Scrap Searched 11 | . . 11 . . . . Spaces Dug 82 | . . 15 8 31 11 17 Terrain Destroyed 702 | . 4 411 88 122 21 56 Melee 67 | . . . 8 31 11 17 Projectile 18 | . 2 3 3 . 7 3 AOE 617 | . 2 408 77 91 3 36 Terrain Rammed . | . . . . . . . Walls Destroyed . | . . . . . . . Machines Disabled . | . . . . . . . Actions | -11 -10 -10 -8 -8 -8 -7 --------- Run | Yrd Mat Sub Mat Gar Mat Fac Total 15847 | 212 959 3345 1901 2104 3459 3867 Wait 3524 | 14 92 49 394 120 2184 671 Move 11333 | 175 813 3099 1318 1755 1130 3043 Hop . | . . . . . . . Pick Up 110 | 6 10 18 32 14 14 16 Fast Attach 63 | 6 1 13 16 5 9 13 Attach 43 | 1 1 5 10 7 3 16 Detach 17 | . 1 2 5 2 . 7 Swap 112 | 1 5 28 20 30 19 9 Drop 122 | . 7 31 22 19 23 20 Fire 385 | 9 29 100 75 82 64 26 Melee 128 | . . . 9 61 13 45 Ram 1 | . . . . . . 1 Kick . | . . . . . . . Crush . | . . . . . . . Escape Stasis . | . . . . . . . Rewire 9 | . . . . 9 . . Trap . | . . . . . . . Miscellaneous . | . . . . . . . Route ------- -11/Scrapyard -10/Materials (discovered 6 exits: [*Mat x3] / [*Min x2] / *Sub) -10/Subcaves (discovered 3 exits: *Mat x2 / [*Rec]) -8/Materials (discovered 4 exits: *Fac x3 / Gar) -8/Garrison (discovered 3 exits: *Mat x3) -8/Materials (discovered 3 exits: *Fac x3) -7/Factory (discovered 6 exits: *Fac x4 / *Low x2) History --------- Turn | Location | Event 12 | -11/Scrapyard | Discovered new exit (range 16) 234 | -11/Scrapyard | Entered Materials 235 | -10/Materials | Met a group of wandering Federalists 311 | -10/Materials | Build established: Mutant 339 | -10/Materials | Lost 3 allies 341 | -10/Materials | Discovered new exit (range 16) 403 | -10/Materials | Discovered new exit (range 7) 534 | -10/Materials | Discovered new exit (range 7) 708 | -10/Materials | Discovered new exit (range 16) 1205 | -10/Materials | Discovered new exit (range 4) 1279 | -10/Materials | Discovered new exit (range 7) 1414 | -10/Materials | Repaired Lgt. Treads 1504 | -10/Materials | Entered Subcaves 1505 | -10/Subcaves | Continued accompanying wandering Federalists (1) 1505 | -10/Subcaves | Approached by a straggling Scientist 1566 | -10/Subcaves | Discovered new exit (range 16) 1589 | -10/Subcaves | Shifting Twisted Machinery released Sub. Shrapnel Launcher 1780 | -10/Subcaves | A Subdweller sparked back to life 1780 | -10/Subcaves | A Subdweller sparked back to life 1822 | -10/Subcaves | Found Prototype Protection 1822 | -10/Subcaves | Identified Gun Armor 1824 | -10/Subcaves | Attached Gun Armor, gained temporary slots: Weapon x2 2038 | -10/Subcaves | Shifting Twisted Machinery released Sub. Machine Gun 2071 | -10/Subcaves | Shifting Twisted Machinery released Piercing Trap 2122 | -10/Subcaves | Build established: Gunner 2576 | -10/Subcaves | Learned Materials emergency access door positions 2855 | -10/Subcaves | Discovered new exit (range 15) 3056 | -10/Subcaves | Shifting Twisted Machinery released Shrapnel Trap 3057 | -10/Subcaves | Shifting Twisted Machinery released Barrage Gun 3996 | -10/Subcaves | Learned Materials interactive machine intel 4031 | -10/Subcaves | Discovered new exit (range 14) 4170 | -10/Subcaves | Ambushed by Subdweller buried in earth 4296 | -10/Subcaves | Visited Clippyterm 4299 | -10/Subcaves | Learned Factory trap positions 4547 | -10/Subcaves | Ambushed by Subdwellers from Twisted Machinery 4550 | -10/Subcaves | Core integrity fell below 50% 4558 | -10/Subcaves | Core integrity fell below 20% 4826 | -10/Subcaves | Visited 4L-MR0's lab 4844 | -10/Subcaves | Found Tower Shield 4900 | -10/Subcaves | Learned location of Zion (-7) 4900 | -10/Subcaves | Met a Zionite searching for "candidates" 4958 | -10/Subcaves | Ambushed by Subdweller buried in earth 6033 | -10/Subcaves | Entered Materials 6033 | -8/Materials | Evolved 4 slots: Propulsion x1, Utility x2, Weapon x1 6035 | -8/Materials | Loaded intel: 19 interactive machine locations 6409 | -8/Materials | Discovered new exit (range 16) 7019 | -8/Materials | Build established: Mutant 7472 | -8/Materials | Repaired Arm. Treads 7485 | -8/Materials | Discovered new exit (range 12) 7981 | -8/Materials | Build established: Bomber 8044 | -8/Materials | Attached Tower Shield, gained temporary slots: Power, Propulsion x2, Utility x2, Weapon x2 8120 | -8/Materials | Identified exit to Factory 8180 | -8/Materials | Learned Storage emergency access door positions 8228 | -8/Materials | Learned location of 2 exits from Lower Caves 8297 | -8/Materials | Repaired Deuterium Engine 8328 | -8/Materials | Learned location of 2 exits from Factory 8377 | -8/Materials | Learned 2 Storage zone layouts 8905 | -8/Materials | Identified exit to Garrison 8905 | -8/Materials | Entered Garrison 9081 | -8/Garrison | Triggered checkpoint 9285 | -8/Garrison | Triggered checkpoint 9306 | -8/Garrison | Garrison Relay disabled 9408 | -8/Garrison | Discovered new exit (range 11) 9441 | -8/Garrison | Triggered checkpoint 9489 | -8/Garrison | Triggered checkpoint 9579 | -8/Garrison | Garrison Relay disabled 9703 | -8/Garrison | Triggered checkpoint 9720 | -8/Garrison | Garrison Relay disabled 9749 | -8/Garrison | Triggered checkpoint 10029 | -8/Garrison | Discovered new exit (range 11) 10221 | -8/Garrison | Triggered checkpoint 10309 | -8/Garrison | Garrison Relay disabled 10357 | -8/Garrison | Triggered checkpoint 10383 | -8/Garrison | Triggered checkpoint 10567 | -8/Garrison | Discovered new exit (range 14) 10687 | -8/Garrison | Triggered checkpoint 11311 | -8/Garrison | Build established: Mutant 11820 | -8/Garrison | Spotted B-75 Beast 11895 | -8/Garrison | Core integrity fell below 50% 11907 | -8/Garrison | Destroyed B-75 Beast 11980 | -8/Garrison | Found Launcher Loader 12214 | -8/Garrison | Installed Relay Interface Framework 12258 | -8/Garrison | Entered Materials 12644 | -8/Materials | Garrison activated, responded to threat 12645 | -8/Materials | Build established: Scavenger-Bomber 12815 | -8/Materials | Discovered exit to Factory (range 7) 13390 | -8/Materials | Build established: Hacker-Mutant 14434 | -8/Materials | Learned location of 1 exit from Recycling 14640 | -8/Materials | Learned Storage stockpile data 14658 | -8/Materials | First assault squad dispatched 14677 | -8/Materials | Build established: Hacker-Skirmisher 14690 | -8/Materials | Learned location of 1 exit from Storage 14816 | -8/Materials | Learned 4 Recycling zone layouts 16288 | -8/Materials | Entered Factory 16288 | -7/Factory | Evolved 2 slots: Propulsion x1, Utility x1 16289 | -7/Factory | Identified exit to Factory 16290 | -7/Factory | Loaded intel: 94 trap records 16485 | -7/Factory | Build established: Hacker-Mutant 16673 | -7/Factory | Discovered new exit (range 5) 16698 | -7/Factory | Identified exit to Lower Caves 17211 | -7/Factory | Central database locked down 17415 | -7/Factory | Learned Extension stockpile data 17441 | -7/Factory | Discovered exit to Factory (range 9) 17651 | -7/Factory | Learned 2 Extension zone layouts 17688 | -7/Factory | Learned Factory trap positions 17713 | -7/Factory | Learned location of Cetus (-5) 17848 | -7/Factory | Learned Extension security intel 17914 | -7/Factory | Learned location of 2 exits from Archives 18066 | -7/Factory | Repaired Mic. Nuclear Core 18189 | -7/Factory | Fabricated Cld. VTOL Module? 18377 | -7/Factory | Repaired Power Maul 18704 | -7/Factory | Lost 3 parts (1n2u) 18763 | -7/Factory | Core integrity fell below 50% 18790 | -7/Factory | Core integrity fell below 20% 18797 | -7/Factory | Destroyed by Y-54 Guardian with Flak Gun Last Messages --------------- 18681_ Acquired 4 matter. 18691_ K-01 Serf collects debris. 18713_ System corrupted: Component data lost. 18728_ K-01 Serf cleans the Terminal. 18736_ System corrupted: Aerolev Unit rejected. 18738_ K-01 Serf destroyed. 18739_ K-01 Serf collects debris. 18743_ Aerolev Unit destroyed. 18743_ Acquired 11 matter. 18746_ Acquired Aerolev Unit. 18746_ K-01 Serf collects debris. 18749_ K-01 Serf cleans the Terminal. 18759_ Aerolev Unit destroyed. 18762_ Imp. Airjet destroyed. 18776_ MOWRB8VUQGK 0K:K2LFD6OM<5N5W 18780_ Imp. Hacking Suite destroyed. 18783_ Mic. Nuclear Core destroyed. 18786_ Hacking Suite destroyed. 18792_ GZ3ULTI 4J0WIMYIK3QQ|NA6K8Z 18793_ P-60 Hacker destroyed. Map ----- +----------------------------------------------------+ | # # #????????????? | | # # """ """ #????????????? | | # # """ """ #????????????? | | # # """ """ #????????????? | | # # #????????????? | | ## + """ """ #????????????? | | ?# # """ """ #????????????? | | ?# # """ """ #????????????? | | ## # #????????????? | | # # #????????????? | | # # #?????######## | | # ###########+##?????# # | | # #?????????# ??????# """ # | | # #???????? ??????# ""R" # | | # #######?# ?????# "" " # | | # #?# ####?# # | | # ##### ### ## # | | ## #???# ## ] # | | #???# mg g """" # | | #???##### """" # | | #???????# | """" # | | #???????###g Y """" # | | #???????# [ """" # | | ##############?#/ """" # | | # #??? # | | # #????????# @ ####### | | + #????????# # # | | #^ #?????/??# #?? # | | # ########## #?? # | | #? # # #? # | | #? # """ # #? # | | #?? # """ # # # | | #?? # """ + # # | | #??? # # + # | | #??? # # # # | | #???? # ### # # | | #????#######?# #?# #? # | | #????????????# #?# #? # | | #????????????##########?# #?? # | | #????????????# #?# #?? # | | #????????????# """ ### ###?#### | | ############## """ # #????? | | # # """ # ! #????? | | # """" """" # + #????? | | # """" """""# ![ # ! #????? | | # """" """" # ""["" # #????? | | + """" """" # "F "" ###+#######? | | # """" """" + """"" # #? | | + """" """" ########## #? | | # """"!"""" #????????# #? | +----------------------------------------------------+ Best States ------------- Heat Dissipation 34 Energy Generation 15 Energy Capacity 275 Matter Stores 300 Matter Capacity 500 Sight Range 16 Robot Scan Range 15 Terrain Scan Density 10 Armor Coverage 2210 Evasion (%) 57 Recoil Reduction 5 Offensive Hacking 22 Item Schematics ----------------- System Shield | -8/Materials | Scanalyzed Power Maul | -8/Materials | Scanalyzed Cld. VTOL Module | -7/Factory | Hacked Robot Schematics ------------------ None Fabricated ------------ Cld. VTOL Module | x1 | -7/Factory Repaired ---------- Lgt. Treads | 60% | -10/Materials Arm. Treads | 71% | -8/Materials Deuterium Engine | 60% | -8/Materials Mic. Nuclear Core | 24% | -7/Factory Power Maul | 31% | -7/Factory Alien Tech Used ----------------- None Achievements -------------- None Challenges ------------ None Game ------ Seed RecoilStasisShield Manual? 0 Play Time 02:53:50 Cumulative 111.4 hours Start 2025.06.04 @ 06:20:25 End 2025.06.04 @ 09:16:30 Sessions 1 Manual Loads 0 Difficulty Rogue Special Mode None Game No. 71 Rogue 71 Adventurer 0 Explorer 0 Win Type - Total 1 Types 1/0/0/0/0/0/0/0/0/0 Lore% 31 Gallery% 46 Achievement% 50 Wizard Run 0 Options --------- Layout 1 ASCII 0 Keyboard 1 Movement Vi Keybinds 1 Fullscreen 1 Font 32/SmallcapsGlow Map View 50x35 Zoom Use 0% Tactical HUD 1 Map Filters NONE Filters NONE Steam X RUN: 3eb4053d-1162-4e1f-aba1-3cbb974c53df